bitfinex/quotes_BTCUSD_20250618
["timestamp","ask_amount","ask_price","bid_price","bid_amount"]
[1750230543535,0.01125524,104820.0,104810.0,0.69591721]
[1750230543765,0.00247336,104820.0,104810.0,0.69591721]
[1750230544220,0.11488865,104830.0,104820.0,0.48396352]
[1750230544443,0.10535004,104830.0,104820.0,0.58020528]
[1750230544672,0.0762522,104830.0,104820.0,0.58020528]
[1750230545609,0.0772522,104830.0,104820.0,0.58910218]
[1750230546316,0.0802522,104830.0,104820.0,0.58910218]
[1750230546549,0.109563,104830.0,104820.0,0.65270218]
[1750230548592,0.004,104830.0,104820.0,0.65270512]
[1750230549741,0.003,104830.0,104820.0,0.65270512]
[1750230550002,0.001,104830.0,104820.0,0.65270512]
[1750230550224,0.01336293,104840.0,104830.0,0.23394259]
[1750230550446,0.01336293,104840.0,104830.0,0.40418419]
[1750230550659,5.15502862,104850.0,104840.0,0.23392166]
[1750230550898,5.50456532,104850.0,104840.0,0.2734215]
[1750230551152,0.36877642,104850.0,104840.0,0.64996326]
[1750230551389,10.1,104870.0,104860.0,0.23387981]
[1750230551631,5.39,104870.0,104860.0,0.27695981]
[1750230552080,10.11323729,104870.0,104860.0,0.27695981]
[1750230552299,5.06323729,104870.0,104860.0,0.27695981]
[1750230552529,5.40323729,104870.0,104860.0,0.27695981]
[1750230552751,5.39,104870.0,104860.0,0.30770717]
[1750230552970,5.392,104870.0,104860.0,0.34180717]
[1750230554317,5.393,104870.0,104860.0,0.34280717]
[1750230554560,0.343,104870.0,104860.0,0.34280717]
[1750230554823,0.3720456,104870.0,104860.0,0.34280717]
[1750230555360,0.3720456,104870.0,104860.0,0.43904893]
[1750230556765,0.3720456,104870.0,104860.0,0.40594893]
[1750230560291,0.38158039,104870.0,104860.0,0.40594893]
[1750230560527,0.39111527,104870.0,104860.0,0.40594893]
[1750230561034,0.38158039,104870.0,104860.0,0.40594893]
[1750230561721,0.3720456,104870.0,104860.0,0.40594893]
[1750230561953,0.39111545,104870.0,104860.0,0.40594893]
[1750230562171,0.3720456,104870.0,104860.0,0.40594893]
[1750230563303,0.38158048,104870.0,104860.0,0.40594893]
[1750230563759,0.3720456,104870.0,104860.0,0.40594893]
[1750230564003,0.38158048,104870.0,104860.0,0.40594893]
[1750230564254,0.38158048,104870.0,104860.0,0.37524893]
[1750230564486,0.44210635,104870.0,104860.0,0.53584893]
[1750230564700,0.46117694,104870.0,104860.0,0.53584893]
[1750230564925,0.45164132,104870.0,104860.0,0.53584893]
[1750230565812,0.44210635,104870.0,104860.0,0.53584893]
[1750230566469,0.44210635,104870.0,104860.0,0.33216893]
[1750230566690,0.38158048,104870.0,104860.0,0.53568893]
[1750230566924,0.39111545,104870.0,104860.0,0.53568893]
[1750230568246,0.40065061,104870.0,104860.0,0.53568893]
[1750230568461,0.39111545,104870.0,104860.0,0.53568893]
[1750230568674,0.40065051,104870.0,104860.0,0.53568893]
[1750230568916,0.3720456,104870.0,104860.0,0.53568893]
[1750230569560,0.38084753,104870.0,104860.0,0.53568893]
[1750230569770,0.3720456,104870.0,104860.0,0.53568893]
[1750230570637,0.3720456,104870.0,104860.0,0.56788893]
[1750230571472,0.40713577,104870.0,104860.0,0.56788893]
[1750230571732,0.3720456,104870.0,104860.0,0.56788893]
[1750230571956,0.3720456,104870.0,104860.0,0.60088893]
[1750230572372,0.3720456,104870.0,104860.0,0.56788893]
[1750230579495,0.3720456,104870.0,104860.0,0.53504893]
[1750230580169,0.3720456,104870.0,104860.0,0.33216893]
[1750230580367,0.4026456,104870.0,104860.0,0.53492893]
[1750230580628,0.3720456,104870.0,104860.0,0.78492893]
[1750230580901,0.3720456,104870.0,104860.0,0.84962893]
[1750230583990,0.0320456,104870.0,104860.0,0.84962893]
[1750230588927,0.003,104870.0,104860.0,0.84962893]
[1750230589146,0.003,104870.0,104860.0,1.14072893]
[1750230590786,0.0302,104900.0,104880.0,0.25]
[1750230591007,5.40241496,104900.0,104890.0,0.53245884]
[1750230591227,5.06241496,104900.0,104890.0,0.53245884]
[1750230591461,0.1086922,104910.0,104900.0,0.21925532]
[1750230591694,0.4486922,104910.0,104900.0,0.21925532]
[1750230591931,0.03244,104910.0,104900.0,0.23379617]
[1750230592181,4e-05,104910.0,104900.0,0.23379617]
[1750230592663,0.03024,104910.0,104900.0,0.43656353]
[1750230593111,0.03977125,104910.0,104900.0,0.43756353]
[1750230593342,0.12522243,104910.0,104900.0,0.43756353]
[1750230593569,0.15532234,104910.0,104900.0,0.43756353]
[1750230593826,0.16784901,104910.0,104900.0,0.43756353]
[1750230594060,0.1708491,104910.0,104900.0,0.43856353]
[1750230594289,0.16131758,104910.0,104900.0,0.43856353]
[1750230594511,0.1708491,104910.0,104900.0,0.43856353]
[1750230594734,0.09492935,104910.0,104900.0,0.43856353]
[1750230594944,0.10446087,104910.0,104900.0,0.43856353]
[1750230595165,0.09492935,104910.0,104900.0,0.43856353]
[1750230595608,0.10446087,104910.0,104900.0,0.43856353]
[1750230595835,0.09492935,104910.0,104900.0,0.43856353]
[1750230596323,0.13318976,104910.0,104900.0,0.43856353]
[1750230596537,0.13318976,104910.0,104900.0,0.27876353]
[1750230597103,0.12365833,104910.0,104900.0,0.27876353]
[1750230599109,0.13318994,104910.0,104900.0,0.27876353]
[1750230599328,0.17895753,104910.0,104900.0,0.27876353]
[1750230599553,0.17895744,104910.0,104900.0,0.27876353]
[1750230599767,0.13318985,104910.0,104900.0,0.27876353]
[1750230600510,0.14272155,104910.0,104900.0,0.27876353]
[1750230600722,0.13318985,104910.0,104900.0,0.27876353]
[1750230600935,0.14272155,104910.0,104900.0,0.27876353]
[1750230601204,0.22924164,104910.0,104900.0,0.27876353]
[1750230601555,0.14272155,104910.0,104900.0,0.27876353]
[1750230601768,0.13318985,104910.0,104900.0,0.27876353]
[1750230602280,0.14272164,104910.0,104900.0,0.27876353]
[1750230603173,0.09355842,104910.0,104900.0,0.27876353]
[1750230603397,0.08402699,104910.0,104900.0,0.27876353]
[1750230603832,0.09355851,104910.0,104900.0,0.27876353]
[1750230604094,0.08402699,104910.0,104900.0,0.27876353]
[1750230604320,0.09355851,104910.0,104900.0,0.27876353]
[1750230606256,0.10309021,104910.0,104900.0,0.27876353]
[1750230606786,0.09355851,104910.0,104900.0,0.27876353]
[1750230607202,0.10309021,104910.0,104900.0,0.27876353]
[1750230607424,0.10309021,104910.0,104900.0,0.23584353]
[1750230607636,0.08402708,104910.0,104900.0,0.27864353]
[1750230607851,0.0935586,104910.0,104900.0,0.27864353]
[1750230608104,0.08402708,104910.0,104900.0,0.27864353]
[1750230608732,0.07449574,104910.0,104900.0,0.27864353]
[1750230608955,0.04429574,104910.0,104900.0,0.37488529]
[1750230609219,0.04429574,104910.0,104900.0,0.62488529]
[1750230609439,0.04429574,104910.0,104900.0,0.65698529]
[1750230610750,0.04429574,104910.0,104900.0,0.62488529]
[1750230611190,0.0849269,104910.0,104900.0,0.62488529]
[1750230611886,0.12745851,104910.0,104900.0,0.58208529]
[1750230612124,0.11792699,104910.0,104900.0,0.62488529]
[1750230612348,0.72274946,104910.0,104900.0,0.45724597]
[1750230612573,0.19065776,104900.0,104890.0,0.20020964]
[1750230612793,0.42196623,104890.0,104880.0,0.51208122]
[1750230613006,0.42196623,104890.0,104880.0,0.60832298]
[1750230613261,0.42196623,104890.0,104880.0,0.62286383]
[1750230613475,0.43149966,104890.0,104880.0,0.60832298]
[1750230613911,0.44103318,104890.0,104880.0,0.60832298]
[1750230614137,0.43149966,104890.0,104880.0,0.60832298]
[1750230614346,0.43249966,104890.0,104880.0,0.62486383]
[1750230615463,0.43349966,104890.0,104880.0,0.62686383]
[1750230615922,0.42396623,104890.0,104880.0,0.62686383]
[1750230616142,0.47578255,104890.0,104880.0,0.62686383]
[1750230616815,0.46624921,104890.0,104880.0,0.62686383]
[1750230617252,0.47578255,104890.0,104880.0,0.62686383]
[1750230617461,0.47578255,104890.0,104880.0,0.58406383]
[1750230617681,0.47578255,104890.0,104880.0,0.62686383]
[1750230620311,0.48531598,104890.0,104880.0,0.62686383]
[1750230621209,0.47578255,104890.0,104880.0,0.62686383]
[1750230621458,0.48531616,104890.0,104880.0,0.62686383]
[1750230621899,0.47578255,104890.0,104880.0,0.62686383]
[1750230622099,0.48531607,104890.0,104880.0,0.62686383]
[1750230622711,0.47578255,104890.0,104880.0,0.62686383]
[1750230622912,0.42396623,104890.0,104880.0,0.62686383]
[1750230623127,0.40159957,104890.0,104880.0,0.62686383]
[1750230623586,0.40159948,104890.0,104880.0,0.62686383]
[1750230623815,0.39206623,104890.0,104880.0,0.62686383]
[1750230624239,0.05206623,104890.0,104880.0,0.62686383]
[1750230624914,0.08526623,104890.0,104880.0,0.62686383]
[1750230625127,0.05206623,104890.0,104880.0,0.62686383]
[1750230625543,0.033,104890.0,104880.0,0.62686383]
[1750230625712,0.04253307,104890.0,104880.0,0.62686383]
[1750230625953,0.05206632,104890.0,104880.0,0.62686383]
[1750230626271,0.39206632,104890.0,104880.0,0.62686383]
[1750230626682,0.39206632,104890.0,104880.0,0.78646383]
[1750230627498,0.40159975,104890.0,104880.0,0.78398383]
[1750230627702,0.39206632,104890.0,104880.0,0.78394383]
[1750230627901,0.40159966,104890.0,104880.0,0.78394383]
[1750230628126,0.40159966,104890.0,104880.0,0.62438383]
[1750230628281,0.40159966,104890.0,104880.0,0.78386383]
[1750230628917,0.39206641,104890.0,104880.0,0.78386383]
[1750230630562,0.40159993,104890.0,104880.0,0.78386383]
[1750230631843,0.39206641,104890.0,104880.0,0.78386383]
[1750230632020,0.40159993,104890.0,104880.0,0.78386383]
[1750230632463,0.39206641,104890.0,104880.0,0.78386383]
[1750230634425,0.40159993,104890.0,104880.0,0.78386383]
[1750230635040,0.39206641,104890.0,104880.0,0.78386383]
[1750230635222,0.40159984,104890.0,104880.0,0.78386383]
[1750230635772,0.39206641,104890.0,104880.0,0.78386383]
[1750230635971,0.39206632,104890.0,104880.0,0.78386383]
[1750230636185,0.40159966,104890.0,104880.0,0.78386383]
[1750230636371,0.39206632,104890.0,104880.0,0.78386383]
[1750230636801,0.40159975,104890.0,104880.0,0.78386383]
[1750230637103,0.39206632,104890.0,104880.0,0.78386383]
[1750230638219,0.38253307,104890.0,104880.0,0.78386383]
[1750230638819,0.373,104890.0,104880.0,0.78386383]
[1750230639766,0.342,104890.0,104880.0,0.78386383]
[1750230640429,0.3731,104890.0,104880.0,0.78386383]
[1750230640606,0.342,104890.0,104880.0,0.78386383]
[1750230641197,0.38263307,104890.0,104880.0,0.78386383]
[1750230641398,0.39216632,104890.0,104880.0,0.78386383]
[1750230641622,0.39216632,104890.0,104880.0,0.62438383]
[1750230641845,0.39216632,104890.0,104880.0,0.78342383]
[1750230642098,0.39216623,104890.0,104880.0,0.78342383]
[1750230642516,0.41543944,104890.0,104880.0,0.78342383]
[1750230642732,0.38263307,104890.0,104880.0,0.78342383]
[1750230643345,0.21825391,104890.0,104880.0,0.78342383]
[1750230644744,0.22778707,104890.0,104880.0,0.78342383]
[1750230644945,0.23732032,104890.0,104880.0,0.78342383]
[1750230647926,0.21825391,104890.0,104880.0,0.78342383]
[1750230648130,0.22778716,104890.0,104880.0,0.78342383]
[1750230648579,0.21825391,104890.0,104880.0,0.78342383]
[1750230649220,0.20872084,104890.0,104880.0,0.78342383]
[1750230649435,0.218254,104890.0,104880.0,0.78342383]
[1750230649645,0.20872084,104890.0,104880.0,0.78342383]
[1750230649883,0.21825391,104890.0,104880.0,0.78342383]
[1750230650648,0.20872084,104890.0,104880.0,0.78342383]
[1750230650861,0.21825381,104890.0,104880.0,0.78342383]
[1750230651082,0.22778697,104890.0,104880.0,0.78342383]
[1750230651521,0.21825381,104890.0,104880.0,0.78342383]
[1750230651757,0.22778697,104890.0,104880.0,0.78342383]
[1750230651995,0.4465987,104900.0,104890.0,0.21927623]
[1750230652222,10.55613086,104900.0,104890.0,0.21927623]
[1750230652710,0.36263339,104900.0,104890.0,0.36145884]
[1750230652931,0.34,104900.0,104890.0,0.36145884]
[1750230653820,0.34,104900.0,104890.0,0.36245884]
[1750230654036,0.341,104900.0,104890.0,0.36245884]
[1750230654688,0.341,104900.0,104890.0,0.36325884]
[1750230654903,0.341,104900.0,104890.0,0.39385884]
[1750230657101,0.341,104900.0,104890.0,0.59501884]
[1750230658941,0.001,104900.0,104890.0,0.59501884]
[1750230665290,0.0326,104900.0,104890.0,0.53185884]
[1750230667141,0.0326,104900.0,104890.0,0.53177884]
[1750230668115,0.0801132,104900.0,104890.0,0.53177884]
[1750230669486,0.0326,104900.0,104890.0,0.53177884]
[1750230669716,0.04213216,104900.0,104890.0,0.53177884]
[1750230669950,0.0326,104900.0,104890.0,0.53177884]
[1750230671953,0.001,104900.0,104890.0,0.53177884]
[1750230672165,0.001,104900.0,104890.0,0.59477884]
[1750230672373,0.001,104900.0,104890.0,0.36245884]
[1750230672606,0.001,104900.0,104890.0,0.53161884]
[1750230672821,0.0316,104900.0,104890.0,0.53161884]
[1750230674844,0.001,104900.0,104890.0,0.53161884]
[1750230675077,0.001,104900.0,104890.0,0.56221884]
[1750230678328,0.001,104900.0,104890.0,0.53161884]
[1750230679523,0.001,104900.0,104890.0,0.56251884]
[1750230683376,0.001,104900.0,104890.0,0.59261884]
[1750230688841,0.001,104900.0,104890.0,0.56251884]
[1750230689354,0.001,104900.0,104890.0,0.59571884]
[1750230690715,0.001,104900.0,104890.0,0.59471884]
[1750230690939,0.001,104900.0,104890.0,0.88581884]
[1750230691152,0.00018212,104910.0,104900.0,0.65075532]
[1750230691361,0.00018212,104910.0,104900.0,0.74699708]
[1750230692202,0.00018212,104910.0,104900.0,0.77779708]
[1750230692545,0.00118212,104910.0,104900.0,0.77979708]
[1750230692742,0.00118212,104910.0,104900.0,0.79633793]
[1750230695278,0.00118212,104910.0,104900.0,0.64633793]
[1750230695718,0.00118212,104910.0,104900.0,0.93743793]
[1750230700586,0.00118212,104910.0,104900.0,1.09567793]
[1750230701064,0.00118212,104910.0,104900.0,1.46171707]
[1750230701311,4e-05,104940.0,104930.0,0.76457262]
[1750230701567,0.00051477,104940.0,104930.0,1.44005438]
[1750230702007,0.00051477,104940.0,104930.0,1.45121999]
[1750230702435,0.00051477,104940.0,104930.0,1.50121999]
[1750230703974,0.00151477,104940.0,104930.0,1.50521999]
[1750230704214,0.00251477,104940.0,104930.0,1.51021999]
[1750230704478,0.00151477,104940.0,104930.0,1.50121999]
[1750230704692,0.00151477,104940.0,104930.0,1.49005438]
[1750230704868,0.02351477,104940.0,104930.0,1.49205438]
[1750230707072,4e-05,104950.0,104940.0,1.24679088]
[1750230707303,0.00018235,104950.0,104940.0,1.53163264]
[1750230707998,0.00018235,104950.0,104940.0,1.09955436]
[1750230708224,0.00018235,104950.0,104940.0,1.53163264]
[1750230708412,0.02618235,104950.0,104940.0,1.53263264]
[1750230708646,0.0656,105000.0,104990.0,0.63360823]
[1750230708861,0.06574235,105000.0,104990.0,0.93012999]
[1750230709289,0.03274235,105000.0,104990.0,0.93012999]
[1750230710612,0.03274235,105000.0,104990.0,0.94912999]
[1750230710849,0.03274235,105000.0,104990.0,0.95212999]
[1750230711067,0.00014235,105000.0,104990.0,0.95212999]
[1750230715232,0.06304235,105000.0,104990.0,0.62918914]
[1750230715454,0.43791646,105000.0,104990.0,0.24106738]
[1750230715665,5.67208931,105000.0,104990.0,0.23154312]
[1750230715880,5.67208931,105000.0,104990.0,0.23154321]
[1750230716097,5.67208931,105000.0,104990.0,0.22201886]
[1750230716320,10.71179227,105000.0,104990.0,0.22201904]
[1750230716541,10.78966776,105000.0,104990.0,0.022]
[1750230716758,10.79841706,105000.0,104990.0,0.022]
[1750230717003,10.91706791,105000.0,104990.0,0.00727619]
[1750230717229,10.89465882,105000.0,104990.0,0.00727619]
[1750230717439,10.89465882,105000.0,104990.0,0.00427619]
[1750230717440,10.92327582,105000.0,104990.0,0.00427619]
[1750230717650,10.94568706,105000.0,104990.0,0.00427619]
[1750230717867,10.92327582,105000.0,104990.0,0.001]
[1750230718086,10.92327582,105000.0,104990.0,0.016]
[1750230718306,10.92327582,105000.0,104990.0,0.015]
[1750230718549,10.94769445,105000.0,104990.0,0.015]
[1750230719435,0.02857522,104980.0,104970.0,0.20955326]
[1750230719680,0.09187794,104970.0,104960.0,0.21908852]
[1750230719994,0.10140428,104970.0,104960.0,0.22861532]
[1750230720203,0.44140428,104970.0,104960.0,0.22861532]
[1750230720431,0.45093072,104970.0,104960.0,0.22861532]
[1750230720645,0.44140428,104970.0,104960.0,0.22861532]
[1750230721073,0.51011745,104970.0,104960.0,0.22861532]
[1750230721266,0.69112227,104970.0,104960.0,0.20956172]
[1750230721513,0.50159165,104970.0,104960.0,0.23808852]
[1750230721729,0.50059165,104970.0,104960.0,0.21256172]
[1750230721950,0.50059165,104970.0,104960.0,0.2220887]
[1750230722190,0.63293563,104970.0,104960.0,0.2075074]
[1750230722410,0.62340965,104970.0,104960.0,0.017]
[1750230722628,0.4138258,104970.0,104960.0,0.23612999]
[1750230722837,0.56246,104970.0,104960.0,0.23312999]
[1750230723070,0.341,104970.0,104960.0,0.5939126]
[1750230723294,0.341,104970.0,104960.0,0.5959126]
[1750230723753,0.35052571,104970.0,104960.0,0.5959126]
[1750230723974,0.45945667,104970.0,104960.0,0.63779278]
[1750230724189,0.45945667,104970.0,104960.0,0.6282658]
[1750230724412,0.65951418,104970.0,104960.0,0.016]
[1750230724665,0.6499882,104970.0,104960.0,0.016]
[1750230725286,0.67806798,104970.0,104960.0,0.016]
[1750230725488,0.67806798,104970.0,104960.0,0.22560355]
[1750230725706,0.67806798,104970.0,104960.0,0.23513062]
[1750230726134,0.67806798,104970.0,104960.0,0.22560355]
[1750230726339,0.67806798,104970.0,104960.0,0.23513071]
[1750230726453,0.67806798,104970.0,104960.0,0.22560355]
[1750230726663,0.66854182,104970.0,104960.0,0.21607621]
[1750230727099,0.66854182,104970.0,104960.0,0.21516121]
[1750230728148,0.63253684,104970.0,104960.0,0.21516121]
[1750230728670,0.65504271,104970.0,104960.0,0.22468855]
[1750230728898,0.65504271,104970.0,104960.0,0.015085]
[1750230729334,0.6546919,104970.0,104960.0,0.015085]
[1750230729524,0.6546919,104970.0,104960.0,0.21516112]
[1750230729773,0.6546919,104970.0,104960.0,0.22468828]
[1750230730655,0.6546919,104970.0,104960.0,0.02461243]
[1750230730871,0.6546919,104970.0,104960.0,0.22468846]
[1750230732533,0.75084112,104970.0,104960.0,0.22468846]
[1750230732961,0.75084112,104970.0,104960.0,0.02461243]
[1750230733181,0.75084112,104970.0,104960.0,0.015085]
[1750230733855,0.75084112,104970.0,104960.0,0.02461243]
[1750230734079,0.75084112,104970.0,104960.0,0.015085]
[1750230734299,5.80084112,104970.0,104960.0,0.015085]
[1750230734512,5.82946312,104970.0,104960.0,0.015085]
[1750230735400,10.87946312,104970.0,104960.0,0.015085]
[1750230736042,11.03758312,104970.0,104960.0,0.015085]
[1750230737129,11.0834253,104970.0,104960.0,0.015085]
[1750230737572,11.09222601,104970.0,104960.0,0.015085]
[1750230737804,11.09122601,104970.0,104960.0,0.002]
[1750230738230,11.09322601,104970.0,104960.0,0.003]
[1750230738900,11.09322141,104970.0,104960.0,0.001]
[1750230739136,11.09422141,104970.0,104960.0,0.001]
[1750230739599,11.09422834,104970.0,104960.0,0.001]
[1750230741783,11.09424254,104970.0,104960.0,0.001]
[1750230742013,10.98916686,104970.0,104960.0,0.21060337]
[1750230742216,10.9715536,104970.0,104960.0,0.21060355]
[1750230742478,11.00927592,104970.0,104960.0,0.001]
[1750230743585,11.03761971,104970.0,104960.0,0.001]
[1750230743850,11.13376893,104970.0,104960.0,0.001]
[1750230744068,11.13388893,104970.0,104960.0,0.001]
[1750230744490,11.07730544,104970.0,104960.0,0.001]
[1750230744909,11.07722544,104970.0,104960.0,0.001]
[1750230745138,11.10372672,104970.0,104960.0,0.001]
[1750230747396,11.13200509,104970.0,104960.0,0.001]
[1750230747847,11.10372735,104970.0,104960.0,0.001]
[1750230748111,11.10376735,104970.0,104960.0,0.001]
[1750230748803,11.16035084,104970.0,104960.0,0.001]
[1750230749003,11.10376735,104970.0,104960.0,0.001]
[1750230750472,11.13205449,104970.0,104960.0,0.001]
[1750230750892,11.13205452,104970.0,104960.0,0.001]
[1750230751472,10.90019118,104970.0,104960.0,0.001]
[1750230751705,10.75468637,104970.0,104960.0,0.001]
[1750230752913,10.75469082,104970.0,104960.0,0.001]
[1750230753111,10.6585416,104970.0,104960.0,0.001]
[1750230753694,10.9985416,104970.0,104960.0,0.001]
[1750230754954,0.20964296,104940.0,104930.0,0.35897531]
[1750230755163,0.36732296,104940.0,104930.0,0.32787531]
[1750230755277,0.72993536,104940.0,104930.0,0.27638552]
[1750230755482,0.72993536,104940.0,104930.0,0.28591541]
[1750230756107,0.62993536,104940.0,104930.0,0.28591541]
[1750230756316,0.64103875,104940.0,104930.0,0.28905776]
[1750230757034,0.61842635,104940.0,104930.0,0.28905776]
[1750230757221,0.6515551,104940.0,104930.0,0.28452787]
[1750230757840,0.6515551,104940.0,104930.0,0.20827567]
[1750230758020,0.6505551,104940.0,104930.0,0.20027567]
[1750230758220,0.35210339,104940.0,104930.0,0.39621759]
[1750230758421,0.001,104940.0,104930.0,0.76598979]
[1750230759315,0.001,104940.0,104930.0,0.92374979]
[1750230760988,0.001,104940.0,104930.0,0.84749759]
[1750230761405,0.001,104940.0,104930.0,0.84501759]
[1750230762461,0.001,104940.0,104930.0,0.64573759]
[1750230762669,0.001,104940.0,104930.0,0.84493759]
[1750230764350,0.001,104940.0,104930.0,0.68725759]
[1750230771520,0.001,104940.0,104930.0,0.65565759]
[1750230771725,0.001,104940.0,104930.0,0.81333759]
[1750230772053,0.001,104940.0,104930.0,0.84473759]
[1750230776412,0.001,104940.0,104930.0,0.64553759]
[1750230776618,0.001,104940.0,104930.0,0.84473759]
[1750230781627,0.001,104940.0,104930.0,1.13583759]
[1750230790429,0.001,104940.0,104930.0,0.93663759]
[1750230790644,0.001,104940.0,104930.0,1.07289759]
[1750230792629,0.0317,104940.0,104930.0,1.07289759]
[1750230793457,0.0317,104940.0,104930.0,0.78179759]
[1750230794959,0.001,104940.0,104930.0,0.78179759]
[1750230795430,0.001,104940.0,104930.0,0.84689759]
[1750230799365,0.001,104940.0,104930.0,1.13799759]
[1750230800225,0.001,104940.0,104930.0,0.64773759]
[1750230800424,0.001,104940.0,104930.0,0.84689759]
[1750230801717,0.001,104940.0,104930.0,1.13799759]
[1750230801931,0.001,104940.0,104930.0,1.06293673]
[1750230802145,0.001,104940.0,104930.0,1.13918893]
[1750230802365,0.001,104940.0,104930.0,1.43028893]
[1750230802859,0.07041883,104990.0,104980.0,0.21908824]
[1750230803090,5.39,104990.0,104980.0,0.21908824]
[1750230803297,5.09168504,104990.0,104980.0,0.21908824]
[1750230803524,5.07263706,104990.0,104980.0,0.21908824]
[1750230803752,10.10952399,104990.0,104980.0,0.21908824]
[1750230803968,0.3495239,104990.0,104980.0,0.21908824]
[1750230804208,0.34014232,104990.0,104980.0,0.21908824]
[1750230804419,0.35166622,104990.0,104980.0,0.22008824]
[1750230804633,0.42492896,104990.0,104980.0,0.22008824]
[1750230805047,0.41540497,104990.0,104980.0,0.22008824]
[1750230805284,0.42492905,104990.0,104980.0,0.22008824]
[1750230805706,0.36276971,104990.0,104980.0,0.22008824]
[1750230805919,0.4355937,104990.0,104980.0,0.22008824]
[1750230806132,0.44511787,104990.0,104980.0,0.22008824]
[1750230806342,0.4355937,104990.0,104980.0,0.22008824]
[1750230806546,0.44511787,104990.0,104980.0,0.22008824]
[1750230806767,0.52634605,104990.0,104980.0,0.22008824]
[1750230806970,0.50729789,104990.0,104980.0,0.22008824]
[1750230807599,0.51682197,104990.0,104980.0,0.22008824]
[1750230807813,0.42606971,104990.0,104980.0,0.22008824]
[1750230808018,0.39586971,104990.0,104980.0,0.22008824]
[1750230808425,0.38634581,104990.0,104980.0,0.22008824]
[1750230808845,0.35324581,104990.0,104980.0,0.22008824]
[1750230809466,0.38634581,104990.0,104980.0,0.22008824]
[1750230810578,0.35324581,104990.0,104980.0,0.22008824]
[1750230811418,0.35324581,104990.0,104980.0,0.33087085]
[1750230812727,0.35324581,104990.0,104980.0,0.58087085]
[1750230817933,0.44359214,104990.0,104980.0,0.58087085]
[1750230818143,0.40289379,104990.0,104980.0,0.58087085]
[1750230818952,0.4028937,104990.0,104980.0,0.58087085]
[1750230819354,0.39336971,104990.0,104980.0,0.58087085]
[1750230820287,0.36276971,104990.0,104980.0,0.58087085]
[1750230820721,0.37229379,104990.0,104980.0,0.58087085]
[1750230820925,0.36276971,104990.0,104980.0,0.58087085]
[1750230821099,0.37229388,104990.0,104980.0,0.58087085]
[1750230821313,0.40459388,104990.0,104980.0,0.58087085]
[1750230821443,0.39506971,104990.0,104980.0,0.58087085]
[1750230821870,0.40459379,104990.0,104980.0,0.58087085]
[1750230822311,0.36276971,104990.0,104980.0,0.58087085]
[1750230822482,0.37229379,104990.0,104980.0,0.58087085]
[1750230822695,0.37229379,104990.0,104980.0,0.62235085]
[1750230823336,0.40499379,104990.0,104980.0,0.62235085]
[1750230823938,0.39546971,104990.0,104980.0,0.62235085]
[1750230824153,0.36276971,104990.0,104980.0,0.62235085]
[1750230825325,0.3722937,104990.0,104980.0,0.62235085]
[1750230826371,0.36276971,104990.0,104980.0,0.62235085]
[1750230827025,0.35324581,104990.0,104980.0,0.62235085]
[1750230827229,0.35324581,104990.0,104980.0,0.62131085]
[1750230827633,0.3627698,104990.0,104980.0,0.62131085]
[1750230827836,0.35324581,104990.0,104980.0,0.62131085]
[1750230828038,0.3627698,104990.0,104980.0,0.62131085]
[1750230828248,0.35324581,104990.0,104980.0,0.62131085]
[1750230829015,0.36276971,104990.0,104980.0,0.62131085]
[1750230829432,0.35324581,104990.0,104980.0,0.62131085]
[1750230830429,0.3627698,104990.0,104980.0,0.62131085]
[1750230831670,0.35324581,104990.0,104980.0,0.62131085]
[1750230831911,0.3627698,104990.0,104980.0,0.62131085]
[1750230833283,0.37229388,104990.0,104980.0,0.57983085]
[1750230833488,0.3722937,104990.0,104980.0,0.62131085]
[1750230834359,0.36276971,104990.0,104980.0,0.62131085]
[1750230834781,0.35324581,104990.0,104980.0,0.62131085]
[1750230835620,0.36276989,104990.0,104980.0,0.62131085]
[1750230835855,0.37229406,104990.0,104980.0,0.62131085]
[1750230836296,0.37229397,104990.0,104980.0,0.62131085]
[1750230836533,0.3627698,104990.0,104980.0,0.62131085]
[1750230836745,0.47543161,104990.0,104980.0,0.62131085]
[1750230837609,0.46590744,104990.0,104980.0,0.62131085]
[1750230837832,0.47543161,104990.0,104980.0,0.62131085]
[1750230838258,0.39498383,104990.0,104980.0,0.62131085]
[1750230839290,0.39498374,104990.0,104980.0,0.62131085]
[1750230840556,0.404508,104990.0,104980.0,0.62131085]
[1750230841024,0.41403235,104990.0,104980.0,0.62131085]
[1750230841895,5.66847888,104990.0,104980.0,0.251]
[1750230842107,5.82332958,104990.0,104980.0,0.001]
[1750230842595,10.92155397,104990.0,104980.0,0.001]
[1750230842814,10.90156447,104990.0,104980.0,0.001]
[1750230843299,10.99780623,104990.0,104980.0,0.001]
[1750230843530,0.54960229,104960.0,104950.0,0.45958703]
[1750230843770,0.5687881,104960.0,104950.0,0.62137726]
[1750230844005,0.75933688,104960.0,104950.0,0.59730861]
[1750230844253,0.75933688,104960.0,104950.0,0.62137735]
[1750230844962,0.74981026,104960.0,104950.0,0.62137735]
[1750230845419,0.74981026,104960.0,104950.0,0.63090515]
[1750230845642,0.74981026,104960.0,104950.0,0.62137735]
[1750230845875,0.74981026,104960.0,104950.0,0.62337735]
[1750230847054,0.75081026,104960.0,104950.0,0.62937735]
[1750230847276,0.87695948,104960.0,104950.0,0.37937735]
[1750230847963,0.86743259,104960.0,104950.0,0.20805887]
[1750230848426,0.86743259,104960.0,104950.0,0.21758685]
[1750230849210,0.86743259,104960.0,104950.0,0.20805887]
[1750230849472,0.85790543,104960.0,104950.0,0.21758703]
[1750230850594,0.85790543,104960.0,104950.0,0.20805887]
[1750230851252,0.85790543,104960.0,104950.0,0.21758703]
[1750230851477,0.85790543,104960.0,104950.0,0.2271151]
[1750230851936,0.76175621,104960.0,104950.0,0.23664308]
[1750230852629,0.76175621,104960.0,104950.0,0.2271151]
[1750230853069,0.76175621,104960.0,104950.0,0.21758703]
[1750230853560,0.76175621,104960.0,104950.0,0.22711501]
[1750230854028,0.76175621,104960.0,104950.0,0.21758703]
[1750230854239,0.76175621,104960.0,104950.0,0.2271151]
[1750230854872,0.73175621,104960.0,104950.0,0.23664308]
[1750230855080,0.69855621,104960.0,104950.0,0.24617088]
[1750230855314,0.69855621,104960.0,104950.0,0.23664308]
[1750230856005,0.79470543,104960.0,104950.0,0.24617097]
[1750230856254,0.69855621,104960.0,104950.0,0.24617097]
[1750230857394,0.5270613,104960.0,104950.0,0.24617007]
[1750230857793,0.53658864,104960.0,104950.0,0.24617007]
[1750230858031,0.54611607,104960.0,104950.0,0.24617007]
[1750230858661,0.6318057,104960.0,104950.0,0.24617007]
[1750230858880,0.60322314,104960.0,104950.0,0.24617007]
[1750230859087,0.51753351,104960.0,104950.0,0.24617007]
[1750230859301,0.36005351,104960.0,104950.0,0.24617007]
[1750230859508,0.49848,104960.0,104950.0,0.41905268]